bitfinex-derivatives/quotes_SOLF0:USTF0_20241229
["timestamp","ask_amount","ask_price","bid_price","bid_amount"]
[1735452513018,2.5731,194.66,194.63,8.15579716]
[1735452514421,2.9,194.73,194.63,8.15579716]
[1735452514620,2.5729,194.67,194.63,10.72909716]
[1735452516215,2.5729,194.67,194.64,2.5732]
[1735452517418,2.9,194.73,194.63,8.15579716]
[1735452517622,2.5727,194.69,194.65,10.72889716]
[1735452518323,8.15579716,194.72,194.65,10.72889716]
[1735452518324,2.5728,194.68,194.65,10.72889716]
[1735452518513,2.9,194.73,194.66,2.573]
[1735452518822,8.15579716,194.72,194.66,2.573]
[1735452519617,8.15579716,194.72,194.67,8.15579716]
[1735452520023,8.15579716,194.72,194.65,10.72889716]
[1735452520221,8.15579716,194.72,194.65,8.15579716]
[1735452521126,2.5729,194.68,194.65,8.15579716]
[1735452522222,2.5729,194.68,194.64,2.5732]
[1735452522424,2.5729,194.68,194.65,8.15579716]
[1735452525620,2.5729,194.68,194.65,10.72889716]
[1735452526325,2.5724,194.71,194.68,2.5727]
[1735452526528,2.5724,194.71,194.69,8.15579716]
[1735452527419,2.5721,194.73,194.69,10.72829716]
[1735452527622,2.5721,194.73,194.71,8.15579716]
[1735452528225,2.572,194.75,194.71,10.72809716]
[1735452529525,2.5717,194.76,194.72,2.5722]
[1735452529729,2.5717,194.76,194.73,8.15579716]
[1735452532324,8.15579716,194.79,194.73,8.15579716]
[1735452534430,2.5717,194.77,194.73,8.15579716]
[1735452535031,2.5717,194.77,194.73,2.5721]
[1735452535231,2.5717,194.76,194.73,8.15579716]
[1735452535438,8.15579716,194.8,194.73,8.15579716]
[1735452535933,8.15579716,194.8,194.73,10.72789716]
[1735452535934,2.5717,194.77,194.73,10.72789716]
[1735452537628,2.5717,194.76,194.73,10.72789716]
[1735452538331,1.531564,194.82,194.75,8.15579716]
[1735452538535,1.531564,194.82,194.68,4.5835]
[1735452538536,1.531564,194.82,194.77,8.15579716]
[1735452538738,8.15579716,194.84,194.77,8.15579716]
[1735452539035,2.571,194.82,194.77,8.15579716]
[1735452539236,2.571,194.82,194.79,8.15579716]
[1735452540138,34.75870036,194.88,194.81,8.15579716]
[1735452540335,8.15579716,194.89,194.83,8.15579716]
[1735452540738,2.5703,194.87,194.83,10.72649716]
[1735452541141,9.96184758,194.94,194.83,10.72649716]
[1735452541335,2.5702,194.88,194.83,10.72649716]
[1735452541535,8.15579716,194.9,194.83,8.15579716]
[1735452541929,2.5704,194.86,194.83,8.15579716]
[1735452543032,2.5701,194.89,194.85,8.15579716]
[1735452543240,2.5701,194.89,194.87,8.15579716]
[1735452543932,8.15579716,194.92,194.87,8.15579716]
[1735452545237,2.5701,194.89,194.87,8.15579716]
[1735452546035,2.86,194.97,194.87,8.15579716]
[1735452546236,8.15579716,194.93,194.87,8.15579716]
[1735452547440,2.5698,194.91,194.87,8.15579716]
[1735452547843,2.5698,194.91,194.87,11.01579716]
[1735452548242,2.57,194.89,194.87,11.01579716]
[1735452549838,2.5701,194.88,194.87,2.86]
[1735452550544,8.15579716,194.89,194.83,8.15579716]
[1735452551545,2.86,194.94,194.83,8.15579716]
[1735452551747,2.5706,194.85,194.83,8.15579716]
[1735452553345,2.5706,194.84,194.83,8.15579716]
[1735452554044,2.5706,194.84,194.82,2.86]
[1735452554245,2.5706,194.84,194.82,11.01579716]
[1735452556950,2.5706,194.85,194.82,8.15579716]
[1735452557141,2.5706,194.85,194.82,11.01579716]
[1735452557542,2.5704,194.87,194.82,13.58659716]
[1735452557749,2.86,194.94,194.84,8.15579716]
[1735452557941,8.15579716,194.9,194.84,8.15579716]
[1735452559644,2.86,194.94,194.84,8.15579716]
[1735452559844,8.15579716,194.91,194.84,8.15579716]
[1735452560249,2.5703,194.87,194.84,8.15579716]
[1735452562345,2.5697,194.92,194.86,8.15579716]
[1735452562651,2.5697,194.92,194.88,8.15579716]
[1735452563548,2.5697,194.92,194.88,10.72589716]
[1735452565251,8.15579716,194.94,194.83,1.6245]
[1735452565451,37.60073134,194.98,194.86,8.15579716]
[1735452565452,8.15579716,194.92,194.86,8.15579716]
[1735452565848,8.15579716,194.9,194.84,11.01579716]
[1735452566954,8.15579716,194.9,194.84,13.58639716]
[1735452567147,8.15579716,194.9,194.84,10.72639716]
[1735452567953,2.5703,194.87,194.84,8.15579716]
[1735452568152,8.15579716,194.9,194.84,8.15579716]
[1735452570249,2.5704,194.87,194.81,3.0272]
[1735452570453,8.15579716,194.88,194.81,16.61399716]
[1735452571459,2.5706,194.85,194.81,16.61399716]
[1735452571652,2.5706,194.85,194.81,13.75399716]
[1735452573957,2.5707,194.84,194.81,11.18299716]
[1735452575855,2.5707,194.84,194.81,13.75399716]
[1735452576158,28.40739033,194.94,194.81,11.18299716]
[1735452576358,2.5704,194.86,194.83,8.15579716]
[1735452577959,2.5706,194.85,194.81,13.75399716]
[1735452578261,8.15579716,194.88,194.81,13.75399716]
[1735452579763,8.15579716,194.88,194.81,5.5982]
[1735452579971,8.15579716,194.88,194.81,13.75399716]
[1735452580574,2.5706,194.85,194.81,13.75399716]
[1735452582871,8.15579716,194.88,194.81,3.0272]
[1735452583168,8.15579716,194.86,194.78,8.15579716]
[1735452583371,2.571,194.82,194.78,8.15579716]
[1735452583771,8.15579716,194.82,194.78,2.5714]
[1735452583968,8.15579716,194.82,194.76,8.15579716]
[1735452585566,8.15579716,194.82,194.77,2.5716]
[1735452585567,2.5712,194.8,194.77,2.5716]
[1735452586266,2.5712,194.8,194.76,2.5717]
[1735452587462,8.15579716,194.8,194.74,3.1464]
[1735452587871,8.15579716,194.78,194.72,34.02089077]
[1735452588070,8.15579716,194.78,194.72,8.15579716]
[1735452588869,2.5718,194.76,194.72,10.72799716]
[1735452589371,8.15579716,194.78,194.72,10.72799716]
[1735452589574,2.5719,194.75,194.72,10.72799716]
[1735452597382,2.5719,194.75,194.72,2.5722]
[1735452598478,2.572,194.74,194.7,2.5725]
[1735452599480,2.5721,194.73,194.7,2.5725]
[1735452600084,8.15579716,194.77,194.69,11.25649716]
[1735452600383,2.5724,194.71,194.68,2.5727]
[1735452601873,2.5724,194.71,194.68,10.72849716]
[1735452607086,2.5724,194.71,194.68,2.5727]
[1735452614489,2.5724,194.71,194.67,8.15579716]
[1735452614688,2.5725,194.7,194.67,10.72869716]
[1735452614888,8.15579716,194.71,194.65,8.15579716]
[1735452616190,2.5726,194.7,194.65,8.15579716]
[1735452616393,8.15579716,194.71,194.65,8.15579716]
[1735452617294,2.5729,194.68,194.64,2.5733]
[1735452617792,2.5729,194.68,194.65,8.15579716]
[1735452617996,2.5729,194.68,194.65,10.72889716]
[1735452618595,2.5726,194.7,194.66,2.573]
[1735452618895,8.15579716,194.71,194.66,2.573]
[1735452619794,8.15579716,194.71,194.65,8.15579716]
[1735452619996,2.5728,194.68,194.65,8.15579716]
[1735452621099,2.5728,194.68,194.64,2.5732]
[1735452621294,2.5728,194.68,194.64,10.72899716]
[1735452627598,2.5729,194.67,194.64,10.72899716]
[1735452627800,8.15579716,194.69,194.62,2.86]
[1735452627994,8.15579716,194.67,194.61,3.0679]
[1735452629099,2.5734,194.64,194.61,3.0679]
[1735452629594,8.15579716,194.67,194.61,3.0679]
[1735452630404,2.5734,194.63,194.61,3.0679]
[1735452631395,2.5736,194.62,194.61,3.0679]
[1735452632504,2.5738,194.6,194.58,9.69649716]
[1735452632701,8.15579716,194.63,194.56,8.15579716]
[1735452633006,2.5737,194.61,194.56,8.15579716]
[1735452633193,8.15579716,194.63,194.56,8.15579716]
[1735452633397,2.86,194.67,194.56,8.15579716]
[1735452633596,8.15579716,194.63,194.57,2.5742]
[1735452633797,11.01579716,194.67,194.6,8.15579716]
[1735452633992,8.15579716,194.67,194.6,8.15579716]
[1735452634199,2.5733,194.64,194.6,10.72959716]
[1735452636797,2.86,194.71,194.61,2.5737]
[1735452637001,8.15579716,194.67,194.61,2.5737]
[1735452638407,2.5732,194.65,194.61,2.5737]
[1735452641408,8.15579716,194.67,194.61,2.5737]
[1735452641613,28.40739033,194.76,194.62,8.15579716]
[1735452641803,8.15579716,194.69,194.64,8.15579716]
[1735452642303,2.86,194.75,194.62,8.15579716]
[1735452642504,8.15579716,194.7,194.64,8.15579716]
[1735452643001,2.5729,194.68,194.64,8.15579716]
[1735452643308,8.15579716,194.7,194.64,8.15579716]
[1735452643512,7.10184758,194.76,194.64,10.72899716]
[1735452643813,8.15579716,194.69,194.64,10.72899716]
[1735452644004,8.15579716,194.69,194.64,8.15579716]
[1735452645307,2.573,194.67,194.63,2.5734]
[1735452645509,8.15579716,194.69,194.62,8.15579716]
[1735452645710,8.15579716,194.67,194.6,3.1317]
[1735452645908,2.5734,194.64,194.6,14.14749716]
[1735452646907,2.5734,194.64,194.6,5.9917]
[1735452647114,2.5734,194.64,194.6,14.14749716]
[1735452647411,2.5734,194.64,194.6,16.72129716]
[1735452653112,2.5734,194.64,194.6,2.5738]
[1735452655817,2.5739,194.6,194.56,2.5742]
[1735452656013,2.5739,194.6,194.57,10.99579716]
[1735452656521,2.5739,194.6,194.57,8.15579716]
[1735452657420,2.5739,194.6,194.57,10.72999716]
[1735452658211,8.15579716,194.65,194.57,8.15579716]
[1735452658418,2.84,194.69,194.57,8.15579716]
[1735452658619,8.15579716,194.64,194.57,8.15579716]
[1735452659124,2.574,194.59,194.56,5.4143]
[1735452659320,2.574,194.59,194.57,8.15579716]
[1735452661125,2.574,194.59,194.56,2.84]
[1735452661617,2.574,194.59,194.55,15.25049716]
[1735452661821,2.574,194.59,194.55,18.09049716]
[1735452662323,2.574,194.59,194.55,15.25049716]
[1735452663223,2.574,194.59,194.55,12.67609716]
[1735452663421,2.5738,194.61,194.56,8.15579716]
[1735452663718,8.15579716,194.67,194.6,8.15579716]
[1735452664118,2.5733,194.65,194.61,2.5737]
[1735452665120,2.5733,194.65,194.6,8.15579716]
[1735452665319,2.5733,194.65,194.6,10.72959716]
[1735452665825,8.15579716,194.67,194.6,10.72959716]
[1735452666125,2.5733,194.64,194.6,10.72959716]
[1735452668226,2.84,194.71,194.6,8.15579716]
[1735452668521,31.24739033,194.74,194.64,8.15579716]
[1735452668720,8.15579716,194.71,194.64,8.15579716]
[1735452669420,31.24739033,194.74,194.64,10.72899716]
[1735452669421,8.15579716,194.7,194.64,10.72899716]
[1735452669815,2.5727,194.69,194.64,10.72899716]
[1735452670324,8.15579716,194.7,194.64,10.72899716]
[1735452670924,2.5729,194.68,194.64,10.72899716]
[1735452671124,2.5729,194.68,194.64,8.15579716]
[1735452672023,2.5729,194.67,194.64,8.15579716]
[1735452672230,8.15579716,194.7,194.62,8.15579716]
[1735452672727,8.15579716,194.7,194.62,10.99579716]
[1735452673536,2.5731,194.66,194.62,13.56929716]
[1735452676027,2.5731,194.66,194.62,5.4135]
[1735452676231,2.5733,194.64,194.62,2.84]
[1735452676927,8.15579716,194.69,194.62,2.84]
[1735452677132,8.15579716,194.69,194.62,16.72849716]
[1735452677835,8.15579716,194.69,194.62,8.5727]
[1735452678033,8.15579716,194.69,194.62,16.72849716]
[1735452679438,2.5731,194.66,194.62,16.72849716]
[1735452682334,2.5731,194.66,194.62,8.5727]
[1735452682838,2.5731,194.66,194.62,16.72849716]
[1735452683538,2.84,194.74,194.64,8.15579716]
[1735452683739,2.5729,194.68,194.64,10.72909716]
[1735452686240,2.5727,194.69,194.64,10.72909716]
[1735452686539,2.5727,194.69,194.65,2.5732]
[1735452687041,63.18195057,194.79,194.66,10.72869716]
[1735452687234,8.15579716,194.73,194.66,8.15579716]
[1735452687430,10.72799716,194.73,194.66,8.15579716]
[1735452687636,10.72799716,194.73,194.68,2.5727]
[1735452687838,8.15579716,194.73,194.68,10.72849716]
[1735452688032,2.5722,194.72,194.68,10.72849716]
[1735452689336,34.77456024,194.79,194.68,8.15579716]
[1735452689540,8.15579716,194.75,194.68,8.15579716]
[1735452689745,8.15579716,194.75,194.69,3.0668]
[1735452690445,2.5721,194.73,194.7,2.5724]
[1735452693433,1.41712019,194.81,194.7,8.15579716]
[1735452693639,2.5717,194.77,194.73,2.5721]
[1735452697241,8.15579716,194.8,194.74,8.15579716]
[1735452698044,1.41712019,194.81,194.74,8.15579716]
[1735452698246,9.57291735,194.81,194.74,8.15579716]
[1735452698546,12.14401735,194.81,194.76,2.5716]
[1735452698742,3.98822019,194.81,194.76,2.5716]
[1735452698948,12.14401735,194.81,194.76,2.5716]
[1735452699842,9.57291735,194.81,194.76,2.5716]
[1735452700039,2.5712,194.8,194.76,2.5716]
[1735452701144,9.57291735,194.81,194.76,2.5716]
[1735452701347,2.5713,194.79,194.76,2.5716]
[1735452705052,2.5713,194.79,194.75,4.0663]
[1735452706551,68.30240775,194.91,194.76,8.15579716]
[1735452706853,8.15579716,194.84,194.77,2.86]
[1735452707852,2.5711,194.81,194.77,5.4315]
[1735452709356,2.5711,194.81,194.78,8.15579716]
[1735452711362,2.5711,194.81,194.78,10.72719716]
[1735452711764,2.5711,194.81,194.78,8.15579716]
[1735452715066,2.5711,194.81,194.78,11.03579716]
[1735452720068,2.5711,194.81,194.78,13.60719716]
[1735452721272,2.5711,194.81,194.78,5.4514]
[1735452721471,2.5711,194.81,194.78,13.60719716]
[1735452725774,2.5706,194.85,194.81,2.5709]
[1735452727470,2.5706,194.85,194.82,2.5709]
[1735452729373,2.5706,194.85,194.82,10.72669716]
[1735452732878,2.5706,194.85,194.82,2.5709]
[1735452734677,8.15579716,194.83,194.76,9.68169716]
[1735452734876,8.15579716,194.81,194.76,9.68169716]
[1735452735178,2.5713,194.79,194.76,1.5259]
[1735452735579,8.15579716,194.81,194.76,1.5259]
[1735452735780,2.5715,194.78,194.76,1.5259]
[1735452735975,2.5715,194.78,194.75,15.10209716]
[1735452736170,2.5721,194.73,194.68,30.93144706]
[1735452736378,2.5721,194.73,194.68,39.08724422]
[1735452737276,2.5721,194.73,194.68,10.72839716]
[1735452737476,2.5721,194.73,194.68,13.60839716]
[1735452738177,2.5721,194.73,194.68,11.03579716]
[1735452738481,2.5721,194.73,194.69,2.5726]
[1735452739781,8.15579716,194.75,194.69,2.5726]
[1735452739979,2.572,194.74,194.69,2.5726]
[1735452741782,2.572,194.74,194.7,8.15579716]
[1735452742175,2.5719,194.75,194.7,8.15579716]
[1735452742383,8.15579716,194.79,194.72,8.15579716]
[1735452743083,2.5717,194.77,194.73,2.572]
[1735452744480,2.5717,194.77,194.73,5.472]
[1735452744882,2.5715,194.78,194.73,5.472]
[1735452745793,2.5715,194.78,194.74,8.15579716]
[1735452747184,2.5716,194.77,194.74,8.15579716]
[1735452752683,8.15579716,194.75,194.66,3.1167]
[1735452752885,8.15579716,194.75,194.67,8.15579716]
[1735452753587,2.5725,194.71,194.67,10.72869716]
[1735452754888,2.5725,194.7,194.67,10.72869716]
[1735452755188,2.5725,194.7,194.67,8.15579716]
[1735452755980,2.5725,194.7,194.67,13.62869716]
[1735452757291,2.5725,194.7,194.67,10.72869716]
[1735452758991,2.5725,194.7,194.67,2.5729]
[1735452759188,2.5725,194.7,194.67,10.72869716]
[1735452763388,2.5725,194.7,194.67,8.15579716]
[1735452764093,8.15579716,194.73,194.66,2.9]
[1735452764393,2.5729,194.68,194.66,2.9]
[1735452764985,2.5729,194.68,194.65,8.15579716]
[1735452765184,2.5729,194.68,194.64,2.5732]
[1735452765394,2.5729,194.68,194.65,8.15579716]
[1735452765592,2.573,194.67,194.63,5.4734]
[1735452765791,8.15579716,194.71,194.63,2.5734]
[1735452766093,2.573,194.67,194.63,10.72919716]
[1735452766684,2.573,194.67,194.64,2.5733]
[1735452766893,2.573,194.67,194.57,4.6609]
[1735452767195,2.573,194.67,194.64,10.72909716]
[1735452767391,1.7301,194.77,194.66,8.15579716]
[1735452767595,2.9,194.79,194.57,4.6609]
[1735452767596,8.15579716,194.76,194.71,8.15579716]
[1735452767897,2.572,194.74,194.71,8.15579716]
[1735452768100,8.15579716,194.76,194.69,8.15579716]
[1735452768695,2.572,194.74,194.69,10.72829716]
[1735452770894,2.9,194.8,194.71,8.15579716]
[1735452771195,8.15579716,194.77,194.71,8.15579716]
[1735452771399,2.9,194.8,194.71,8.15579716]
[1735452771594,8.15579716,194.77,194.71,8.15579716]
[1735452772202,2.5719,194.75,194.71,10.72819716]
[1735452772999,2.572,194.74,194.71,10.72819716]
[1735452773599,2.5722,194.73,194.69,10.72829716]
[1735452774400,2.5722,194.73,194.69,8.15579716]
[1735452775402,2.5722,194.73,194.69,10.72839716]
[1735452777400,2.5723,194.72,194.69,8.15579716]
[1735452777596,8.15579716,194.74,194.69,8.15579716]
[1735452777902,8.15579716,194.74,194.68,3.2282]
[1735452778100,2.5722,194.73,194.68,3.2282]
[1735452778402,8.15579716,194.74,194.68,3.2282]
[1735452778902,2.5731,194.66,194.62,2.5735]
[1735452779101,2.9,194.75,194.62,2.5735]
[1735452779102,2.9,194.75,194.63,8.15579716]
[1735452779298,8.15579716,194.71,194.65,8.15579716]
[1735452779502,2.5726,194.7,194.66,2.573]
[1735452783508,2.5724,194.71,194.67,10.72859716]
[1735452783913,2.5724,194.71,194.67,8.15579716]
[1735452785413,2.5724,194.71,194.68,2.5727]
[1735452788214,2.5724,194.71,194.67,10.72869716]
[1735452790010,2.5725,194.7,194.67,10.72869716]
[1735452793816,2.5726,194.69,194.65,13.62889716]
[1735452795319,2.5728,194.68,194.65,13.62889716]
[1735452799119,2.5728,194.68,194.67,8.15579716]
[1735452801213,8.15579716,194.73,194.65,8.15579716]
[1735452801419,8.15579716,194.71,194.65,8.15579716]
[1735452801915,2.5731,194.66,194.65,8.15579716]
[1735452802822,2.9,194.75,194.65,8.15579716]
[1735452803017,2.9,194.75,194.67,8.15579716]
[1735452803218,8.15579716,194.74,194.67,8.15579716]
[1735452804409,2.9,194.75,194.67,8.15579716]
[1735452804617,2.5724,194.71,194.67,10.72859716]
[1735452806621,2.5728,194.68,194.65,2.5732]
[1735452806817,8.15579716,194.73,194.65,8.15579716]
[1735452807018,8.15579716,194.71,194.65,8.15579716]
[1735452807618,2.573,194.67,194.65,8.15579716]
[1735452808121,8.15579716,194.71,194.65,8.15579716]
[1735452808421,2.573,194.66,194.65,8.15579716]
[1735452813622,2.5729,194.67,194.65,8.15579716]
[1735452817720,8.15579716,194.71,194.65,8.15579716]
[1735452817918,8.15579716,194.73,194.65,8.15579716]
[1735452818325,2.5726,194.7,194.67,2.5729]
[1735452819022,2.5726,194.7,194.66,2.573]
[1735452822227,2.5727,194.69,194.66,2.573]
[1735452827634,8.15579716,194.76,194.7,2.5724]
[1735452827833,8.15579716,194.76,194.7,10.72819716]
[1735452828337,2.5719,194.75,194.7,10.72819716]
[1735452828637,36.56318749,194.78,194.73,2.5721]
[1735452828831,2.5716,194.77,194.72,8.15579716]
[1735452830339,2.5716,194.77,194.73,2.5721]
[1735452841242,8.15579716,194.79,194.72,8.15579716]
[1735452841446,2.5713,194.79,194.74,8.15579716]
[1735452842438,2.5713,194.79,194.76,2.5717]
[1735452844241,2.5713,194.79,194.74,8.15579716]
[1735452844436,2.5713,194.79,194.75,2.5718]
[1735452851648,2.5714,194.78,194.75,2.5718]
[1735452859554,2.5714,194.79,194.76,2.5717]
[1735452860956,8.15579716,194.79,194.73,2.9]
[1735452861650,2.5717,194.77,194.73,5.472]
[1735452861854,2.5717,194.77,194.73,2.572]
[1735452863554,2.5717,194.77,194.74,2.5719]
[1735452866861,2.5717,194.77,194.74,10.72769716]
[1735452869358,8.15579716,194.82,194.74,8.15579716]
[1735452870463,2.5713,194.79,194.76,2.5717]
[1735452882568,8.15579716,194.82,194.75,2.5718]
[1735452882968,2.5714,194.79,194.75,2.5718]
[1735452886168,8.15579716,194.82,194.75,2.5718]
[1735452886373,2.5715,194.78,194.75,2.5718]
[1735452888874,8.15579716,194.81,194.74,8.15579716]
[1735452889073,8.15579716,194.79,194.71,8.15579716]
[1735452890479,2.5719,194.75,194.72,2.5721]
[1735452892084,2.5721,194.74,194.71,8.15579716]
[1735452893192,2.5721,194.73,194.7,2.5724]
[1735452893595,2.5721,194.73,194.71,8.15579716]
[1735452894790,8.15579716,194.75,194.69,3.107]
[1735452894985,8.15579716,194.75,194.66,2.84]
[1735452895189,8.15579716,194.75,194.68,8.15579716]
[1735452895591,2.5724,194.71,194.68,8.15579716]
[1735452900490,2.5724,194.71,194.68,10.72849716]
[1735452901193,8.15579716,194.71,194.64,2.956]
[1735452901392,8.15579716,194.71,194.64,11.11179716]
[1735452901594,2.5729,194.68,194.64,1.4668]
[1735452901794,2.5729,194.68,194.64,4.04]
[1735452902595,2.5729,194.68,194.64,12.19579716]
[1735452903289,8.15579716,194.71,194.66,8.15579716]
[1735452903491,2.5726,194.7,194.66,8.15579716]
[1735452904391,2.5726,194.7,194.66,10.72879716]
[1735452906295,2.5726,194.69,194.66,10.72879716]
[1735452907698,10.72829716,194.71,194.66,10.72879716]
[1735452908295,8.15579716,194.71,194.66,10.72879716]
[1735452908495,2.5726,194.7,194.66,10.72879716]
[1735452912894,2.5726,194.7,194.66,2.573]
[1735452913098,2.5726,194.7,194.66,10.72879716]
[1735452915200,2.5727,194.69,194.66,10.72879716]
[1735452915595,2.5727,194.69,194.66,2.573]
[1735452917200,2.5727,194.69,194.66,10.72879716]
[1735452917702,2.5724,194.71,194.66,8.15579716]
[1735452917899,2.5724,194.71,194.68,8.15579716]
[1735452919416,2.5724,194.71,194.68,10.72859716]
[1735452920303,2.5724,194.71,194.68,8.15579716]
[1735452922905,2.5724,194.71,194.68,10.72859716]
[1735452923411,8.15579716,194.74,194.66,10.99579716]
[1735452923605,2.5726,194.7,194.66,13.56879716]
[1735452924709,2.5726,194.7,194.66,5.413]
[1735452924903,2.5726,194.7,194.66,13.56879716]
[1735452925908,2.5726,194.7,194.66,10.99579716]
[1735452926210,2.5726,194.7,194.67,2.5729]
[1735452931008,2.5727,194.69,194.66,10.72879716]
[1735452931215,8.15579716,194.72,194.64,4.3068]
[1735452931414,8.15579716,194.72,194.65,8.15579716]
[1735452931609,2.5725,194.7,194.65,10.72889716]
[1735452931807,8.15579716,194.72,194.65,10.72889716]
[1735452933116,2.5727,194.69,194.65,10.72889716]
[1735452939326,2.5727,194.69,194.66,2.573]
[1735452939518,2.5725,194.7,194.67,8.15579716]
[1735452940524,2.5725,194.7,194.67,10.72859716]
[1735452944928,2.5725,194.7,194.67,8.15579716]
[1735452946026,2.5726,194.69,194.67,8.15579716]
[1735452950426,2.84,194.76,194.67,8.15579716]
[1735452950728,28.40739033,194.78,194.69,8.15579716]
[1735452950928,28.40739033,194.78,194.71,8.15579716]
[1735452951129,36.56318749,194.78,194.71,8.15579716]
[1735452951531,36.56318749,194.78,194.71,9.66739716]
[1735452951921,2.5719,194.75,194.71,12.23979716]
[1735452955342,8.15579716,194.78,194.71,9.66739716]
[1735452955642,2.5717,194.77,194.73,10.72789716]
[1735452958038,2.5717,194.76,194.73,10.72789716]
[1735452958936,2.5717,194.76,194.72,1.5459]
[1735452959137,8.15579716,194.78,194.72,1.5459]
[1735452960544,2.572,194.74,194.72,1.5459]
[1735452964046,8.15579716,194.76,194.7,2.84]
[1735452965345,2.5723,194.72,194.7,2.84]
[1735452965747,2.5723,194.72,194.68,10.72849716]
[1735452967745,2.5724,194.71,194.68,2.5727]
[1735452970246,2.5724,194.71,194.69,8.15579716]
[1735452970440,2.84,194.79,194.69,8.15579716]
[1735452970645,8.15579716,194.76,194.69,10.72839716]
[1735452971144,2.5723,194.72,194.69,10.72839716]
[1735452972949,2.572,194.74,194.69,8.15579716]
[1735452973152,2.572,194.74,194.71,8.15579716]
[1735452974453,2.572,194.74,194.71,10.72819716]
[1735452977958,8.15579716,194.78,194.71,8.15579716]
[1735452978258,2.5721,194.73,194.71,8.15579716]
[1735452982665,2.5721,194.73,194.7,2.5725]
[1735452982964,2.5721,194.73,194.7,10.72829716]
[1735452983464,8.15579716,194.78,194.7,8.15579716]
[1735452983663,2.572,194.74,194.71,2.5724]
[1735452985560,8.15579716,194.79,194.73,2.5721]
[1735452985762,8.15579716,194.79,194.72,8.15579716]
[1735452986263,2.84,194.81,194.72,8.15579716]
[1735452986466,8.15579716,194.8,194.74,2.5719]
[1735452987566,70.14920044,194.84,194.76,8.15579716]
[1735452987763,8.15579716,194.83,194.76,8.15579716]
[1735452988459,2.5713,194.8,194.76,8.15579716]
[1735452988667,2.5713,194.8,194.76,10.72739716]
[1735452994874,2.5713,194.8,194.76,2.5716]
[1735452995074,2.5713,194.8,194.76,10.72739716]
[1735452999075,2.5715,194.78,194.74,2.5719]
[1735452999376,8.15579716,194.79,194.73,10.99579716]
[1735452999777,2.5717,194.77,194.73,13.56789716]
[1735453001776,2.5717,194.77,194.73,5.4121]
[1735453001977,2.5717,194.77,194.74,8.15579716]
[1735453002480,41.74181011,194.84,194.76,8.15579716]
[1735453002680,8.15579716,194.83,194.76,8.15579716]
[1735453002981,2.5715,194.78,194.76,8.15579716]
[1735453004883,2.5715,194.78,194.75,8.15579716]
[1735453006084,2.5715,194.78,194.75,10.72759716]
[1735453007979,8.15579716,194.83,194.75,8.15579716]
[1735453008181,8.15579716,194.83,194.77,10.72729716]
[1735453008585,2.5711,194.81,194.77,10.72729716]
[1735453008887,8.15579716,194.83,194.77,8.15579716]
[1735453010489,2.5713,194.8,194.77,8.15579716]
[1735453011887,8.15579716,194.83,194.77,8.15579716]
[1735453013086,2.5713,194.8,194.77,8.15579716]
[1735453013985,49.89760727,194.84,194.77,8.15579716]
[1735453014184,2.5713,194.79,194.77,8.15579716]
[1735453027606,2.5714,194.78,194.77,8.15579716]
[1735453030208,2.5717,194.76,194.75,3.1249]
[1735453030396,2.5717,194.76,194.75,5.9649]
[1735453030603,2.5717,194.76,194.72,2.5721]
[1735453030604,8.15579716,194.8,194.73,8.15579716]
[1735453031206,2.572,194.74,194.73,8.15579716]
[1735453037011,8.15579716,194.78,194.69,3.0643]
[1735453037310,8.15579716,194.78,194.71,8.15579716]
[1735453038415,2.5724,194.72,194.71,8.15579716]
[1735453039314,8.15579716,194.78,194.69,3.0643]
[1735453039514,2.5725,194.7,194.69,3.0643]
[1735453039705,2.5725,194.7,194.69,11.22009716]
[1735453041817,2.5725,194.7,194.69,3.0643]
[1735453042018,2.5725,194.7,194.69,11.22009716]
[1735453043116,2.5725,194.7,194.69,3.0643]
[1735453043318,2.5725,194.7,194.69,8.15579716]
[1735453054022,2.5725,194.7,194.67,5.4129]
[1735453054023,8.15579716,194.75,194.67,2.84]
[1735453054225,8.15579716,194.75,194.66,2.84]
[1735453054226,2.5728,194.68,194.66,2.84]
[1735453054526,2.5728,194.68,194.67,8.15579716]
[1735453055921,2.5728,194.68,194.66,2.84]
[1735453056128,2.5728,194.68,194.66,10.99579716]